bitfinex/quotes_SOLUSD_20241103
["timestamp","ask_amount","ask_price","bid_price","bid_amount"]
[1730598489268,17.81093486,164.29,164.25,20.0]
[1730598489957,17.81093486,164.3,164.25,17.81093486]
[1730598490451,17.81093486,164.27,164.22,17.81093486]
[1730598491046,17.81093486,164.28,164.22,17.81093486]
[1730598491859,17.81093486,164.29,164.23,17.81093486]
[1730598493261,17.81093486,164.28,164.23,17.81093486]
[1730598493438,17.81093486,164.28,164.22,17.81093486]
[1730598494141,17.81093486,164.28,164.2,6.3967]
[1730598494142,17.81093486,164.29,164.23,17.81093486]
[1730598494471,17.81093486,164.28,164.23,17.81093486]
[1730598495160,17.81093486,164.3,164.24,17.81093486]
[1730598495344,17.81093486,164.31,164.25,37.81093486]
[1730598495750,17.81093486,164.3,164.25,20.0]
[1730598496765,17.81093486,164.31,164.25,37.81093486]
[1730598496957,17.81093486,164.31,164.25,17.81093486]
[1730598497154,17.81093486,164.31,164.26,17.81093486]
[1730598498442,17.81093486,164.28,164.23,17.81093486]
[1730598498957,17.81093486,164.29,164.24,17.81093486]
[1730598500559,17.81093486,164.28,164.22,37.81093486]
[1730598501676,17.81093486,164.28,164.23,17.81093486]
[1730598503264,17.81093486,164.29,164.24,17.81093486]
[1730598503757,17.81093486,164.3,164.24,17.81093486]
[1730598503965,17.81093486,164.29,164.24,17.81093486]
[1730598504872,17.81093486,164.3,164.24,17.81093486]
[1730598505671,17.81093486,164.29,164.23,17.81093486]
[1730598506053,17.81093486,164.3,164.25,20.0]
[1730598506275,17.81093486,164.31,164.25,37.81093486]
[1730598507348,17.81093486,164.32,164.26,17.81093486]
[1730598507564,6.085,164.34,164.21,38.791184]
[1730598507565,17.81093486,164.34,164.29,17.81093486]
[1730598508150,17.81093486,164.34,164.28,17.81093486]
[1730598508351,17.81093486,164.33,164.28,17.81093486]
[1730598509361,17.81093486,164.32,164.28,20.0]
[1730598511256,17.81093486,164.31,164.26,20.0]
[1730598511766,17.81093486,164.31,164.26,37.81093486]
[1730598512474,17.81093486,164.32,164.27,17.81093486]
[1730598512655,17.81093486,164.32,164.28,20.0]
[1730598513675,11.3818138,164.31,164.27,20.0]
[1730598520578,11.3818138,164.32,164.27,20.0]
[1730598520882,11.3818138,164.32,164.28,20.0]
[1730598522261,11.3818138,164.32,164.27,20.0]
[1730598522467,11.3818138,164.31,164.27,20.0]
[1730598522960,11.3818138,164.31,164.26,11.3818138]
[1730598523168,11.3818138,164.31,164.25,11.3818138]
[1730598523470,11.3818138,164.31,164.26,11.3818138]
[1730598528491,11.3818138,164.3,164.26,20.0]
[1730598528889,11.3818138,164.3,164.25,20.0]
[1730598529488,11.3818138,164.31,164.25,11.3818138]
[1730598529688,11.3818138,164.31,164.26,20.0]
[1730598530576,14.98655619,164.3,164.25,20.0]
[1730598530795,11.3818138,164.3,164.25,20.0]
[1730598532172,11.3818138,164.31,164.26,11.3818138]
[1730598532693,11.3818138,164.31,164.26,20.0]
[1730598533070,3.6045622,164.3,164.26,20.0]
[1730598533277,11.3818138,164.31,164.26,20.0]
[1730598533478,3.60460448,164.3,164.26,20.0]
[1730598533786,11.3818138,164.31,164.26,20.0]
[1730598533989,3.60459208,164.3,164.26,20.0]
[1730598534169,11.3818138,164.31,164.26,20.0]
[1730598534370,3.60468519,164.3,164.26,20.0]
[1730598534570,11.3818138,164.31,164.26,20.0]
[1730598534771,3.60460493,164.3,164.26,20.0]
[1730598534987,11.3818138,164.31,164.26,20.0]
[1730598535194,3.60457361,164.3,164.26,20.0]
[1730598535393,11.3818138,164.3,164.25,20.0]
[1730598535778,11.3818138,164.3,164.25,11.3818138]
[1730598535979,11.3818138,164.3,164.26,20.0]
[1730598536797,11.3818138,164.31,164.26,20.0]
[1730598537575,3.60523874,164.3,164.26,31.3818138]
[1730598537800,6.0846,164.35,164.27,11.3818138]
[1730598537801,11.3818138,164.33,164.27,11.3818138]
[1730598537991,3.60523702,164.32,164.27,11.3818138]
[1730598538187,3.60523702,164.31,164.26,11.3818138]
[1730598538391,11.3818138,164.32,164.26,11.3818138]
[1730598538595,3.60559709,164.31,164.26,11.3818138]
[1730598538782,11.3818138,164.32,164.26,11.3818138]
[1730598538980,3.60559658,164.31,164.26,11.3818138]
[1730598539177,11.3818138,164.32,164.26,11.3818138]
[1730598539379,3.60573877,164.31,164.26,11.3818138]
[1730598539676,11.3818138,164.32,164.26,11.3818138]
[1730598539893,3.6059196,164.31,164.26,11.3818138]
[1730598540094,11.3818138,164.32,164.26,11.3818138]
[1730598540289,3.60612319,164.31,164.26,11.3818138]
[1730598540497,11.3818138,164.32,164.26,11.3818138]
[1730598540974,3.60639817,164.31,164.26,11.3818138]
[1730598541174,11.3818138,164.31,164.26,20.0]
[1730598543091,11.3818138,164.32,164.26,11.3818138]
[1730598543395,11.3818138,164.32,164.22,20.0]
[1730598543396,3.6065744,164.31,164.29,11.3818138]
[1730598543576,11.3818138,164.34,164.29,11.3818138]
[1730598543782,3.60674139,164.33,164.29,11.3818138]
[1730598543981,3.60674139,164.32,164.29,16.5224]
[1730598544175,0.3045525,164.36,164.31,11.3818138]
[1730598544395,3.60663052,164.35,164.32,11.3818138]
[1730598544602,3.60663052,164.34,164.32,11.3818138]
[1730598544804,0.3045525,164.36,164.32,11.3818138]
[1730598545001,0.3045525,164.36,164.33,20.0]
[1730598545310,0.3045525,164.36,164.35,31.3818138]
[1730598545506,0.3045525,164.36,164.35,55.1586978]
[1730598545711,0.3045525,164.36,164.35,71.6810978]
[1730598545999,0.3045525,164.36,164.35,47.9042138]
[1730598546584,0.3045525,164.36,164.35,20.0]
[1730598548388,0.3045525,164.36,164.35,31.3818138]
[1730598550002,0.3045525,164.36,164.35,55.1586978]
[1730598554205,0.3045525,164.36,164.35,31.3818138]
[1730598558800,0.3045525,164.36,164.35,55.1586978]
[1730598561109,0.3045525,164.36,164.35,55.2586978]
[1730598561410,0.3045525,164.36,164.35,71.1833978]
[1730598562612,0.3045525,164.45,164.42,22.3591]
[1730598562913,0.3045525,164.53,164.45,43.776884]
[1730598563098,0.3045525,164.53,164.49,11.3818138]
[1730598563300,0.3045525,164.53,164.48,11.3818138]
[1730598563497,0.3045525,164.53,164.49,20.0]
[1730598563802,0.3045525,164.53,164.49,31.3818138]
[1730598565099,0.3045525,164.53,164.51,11.3818138]
[1730598565324,0.3045525,164.53,164.52,31.3818138]
[1730598575231,0.3045525,164.53,164.5,31.3818138]
[1730598575734,0.3045525,164.53,164.52,20.0]
[1730598581411,0.3045525,164.53,164.52,31.3818138]
[1730598581612,0.3045525,164.53,164.52,55.1586978]
[1730598592549,0.3045525,164.53,164.52,31.3818138]
[1730598594028,0.3045525,164.53,164.52,55.1586978]
[1730598602334,0.3045525,164.53,164.52,61.2368978]
[1730598605356,0.3045525,164.53,164.52,37.4600138]
[1730598610368,0.3045525,164.53,164.52,6.0782]
[1730598611647,0.3045525,164.53,164.52,26.0782]
[1730598614654,0.3045525,164.53,164.52,61.2368978]
[1730598618765,0.3045525,164.53,164.52,37.4600138]
[1730598619062,0.3045525,164.53,164.52,6.0782]
[1730598619658,0.3045525,164.53,164.52,17.4600138]
[1730598620059,0.3045525,164.53,164.52,37.4600138]
[1730598623848,0.3045525,164.53,164.52,26.0782]
[1730598626066,0.3045525,164.53,164.52,37.4600138]
[1730598627255,0.3045525,164.53,164.52,26.0782]
[1730598627463,0.3045525,164.53,164.52,6.0782]
[1730598627758,11.6863663,164.53,164.52,6.0782]
[1730598628570,11.6863663,164.53,164.51,15.1962]
[1730598628779,0.3045525,164.53,164.52,20.0]
[1730598630662,0.3045525,164.53,164.52,26.0782]
[1730598634562,0.3045525,164.53,164.52,37.4600138]
[1730598640470,0.3045525,164.53,164.52,61.2368978]
[1730598640672,5.25e-05,164.53,164.52,61.2368978]
[1730598642959,5.25e-05,164.53,164.52,61.3368978]
[1730598643674,5.25e-05,164.53,164.52,61.2368978]
[1730598645885,5.25e-05,164.53,164.52,68.89482612]
[1730598647084,5.25e-05,164.53,164.52,61.2368978]
[1730598647667,5.25e-05,164.53,164.52,62.87676771]
[1730598657367,5.25e-05,164.53,164.52,61.2368978]
[1730598664293,0.3045525,164.61,164.53,23.776884]
[1730598664473,0.3045525,164.61,164.59,11.3818138]
[1730598665473,0.3045525,164.61,164.6,6.0753]
[1730598666788,0.3045525,164.61,164.6,37.4571138]
[1730598669489,0.3045525,164.61,164.6,61.2339978]
[1730598675021,0.3045525,164.61,164.6,37.4571138]
[1730598675196,0.3045525,164.61,164.6,6.0753]
[1730598676415,0.3045525,164.61,164.6,26.0753]
[1730598679214,0.3045525,164.61,164.6,37.4571138]
[1730598681622,0.3045525,164.61,164.6,61.2339978]
[1730598692433,16.4885525,164.69,164.61,43.776884]
[1730598692630,16.4885525,164.69,164.65,11.3818138]
[1730598694524,16.4885525,164.69,164.66,21.2559]
[1730598705243,0.3045525,164.69,164.66,11.3818138]
[1730598705541,0.3045525,164.69,164.65,31.3818138]
[1730598706125,0.3045525,164.69,164.65,20.0]
[1730598706348,0.3045525,164.69,164.66,21.2559]
[1730598707244,11.3818138,164.68,164.66,21.2559]
[1730598707435,11.3818138,164.67,164.66,21.2559]
[1730598709342,11.3818138,164.67,164.63,20.0]
[1730598709746,11.3818138,164.68,164.63,20.0]
[1730598710050,11.3818138,164.68,164.64,20.0]
[1730598711050,11.3818138,164.67,164.65,21.2571]
[1730598712252,11.3818138,164.66,164.65,21.2571]
[1730598712431,11.3818138,164.67,164.65,21.2571]
[1730598712963,11.3818138,164.67,164.62,32.6427138]
[1730598713643,11.3818138,164.67,164.63,20.0]
[1730598715036,11.3818138,164.67,164.64,21.2584]
[1730598716051,0.3045525,164.69,164.64,21.2584]
[1730598716052,11.3818138,164.66,164.64,21.2584]
[1730598717044,11.3818138,164.67,164.64,21.2584]
[1730598722458,11.3818138,164.67,164.64,15.1846]
[1730598723257,11.3818138,164.65,164.64,15.1846]
[1730598724653,11.3818138,164.65,164.61,20.0]
[1730598726051,11.3818138,164.65,164.63,20.0]
[1730598727249,11.3818138,164.65,164.64,6.0738]
[1730598727856,11.3818138,164.65,164.63,6.0741]
[1730598728047,11.3818138,164.64,164.63,6.0741]
[1730598728750,11.3818138,164.64,164.6,30.3766]
[1730598729250,11.3818138,164.62,164.59,21.2649]
[1730598729456,11.3818138,164.6,164.59,21.2649]
[1730598730375,11.3818138,164.6,164.58,30.3803]
[1730598730739,45.5272552,164.64,164.56,20.0]
[1730598730740,11.3818138,164.59,164.56,20.0]
[1730598731648,11.3818138,164.58,164.56,20.0]
[1730598731838,11.3818138,164.58,164.57,6.0764]
[1730598732276,11.3818138,164.58,164.55,21.2699]
[1730598732437,11.3818138,164.56,164.55,21.2699]
[1730598733276,11.3818138,164.56,164.49,34.0416138]
[1730598733442,11.3818138,164.54,164.51,20.0]
[1730598733843,11.3818138,164.53,164.5,51.6716]
[1730598734951,11.3818138,164.52,164.5,45.5926]
[1730598735153,11.3818138,164.52,164.51,20.0]
[1730598735756,11.3818138,164.52,164.5,15.1975]
[1730598736056,11.3818138,164.51,164.5,15.1975]
[1730598736260,11.3818138,164.54,164.5,15.1975]
[1730598737267,11.3818138,164.54,164.5,21.2765]
[1730598738067,11.3818138,164.54,164.5,15.1975]
[1730598738374,11.3818138,164.57,164.51,31.3818138]
[1730598738561,16.2913,164.6,164.53,31.3818138]
[1730598738562,11.3818138,164.59,164.53,31.3818138]
[1730598738763,11.3818138,164.58,164.53,31.3818138]
[1730598739865,11.3818138,164.57,164.53,20.0]
[1730598740044,11.3818138,164.57,164.52,31.3818138]
[1730598740242,11.3818138,164.57,164.54,20.0]
[1730598740474,11.3818138,164.56,164.54,20.0]
[1730598741351,11.3818138,164.55,164.54,20.0]
[1730598742261,11.3818138,164.57,164.54,41.2713]
[1730598744063,11.3818138,164.56,164.54,41.2713]
[1730598746749,11.3818138,164.57,164.54,41.2713]
[1730598746948,11.3818138,164.58,164.54,41.2713]
[1730598747368,11.3818138,164.57,164.54,41.2713]
[1730598747878,11.3818138,164.55,164.54,21.2713]
[1730598748984,11.3818138,164.55,164.51,41.2752]
[1730598751481,11.3818138,164.55,164.51,71.6684]
[1730598751674,11.3818138,164.56,164.51,71.6684]
[1730598753280,11.3818138,164.56,164.51,83.0502138]
[1730598759089,11.3818138,164.59,164.54,20.0]
[1730598759269,11.3818138,164.6,164.54,31.3818138]
[1730598759465,11.3818138,164.59,164.54,20.0]
[1730598760165,11.3818138,164.59,164.55,21.27]
[1730598760490,11.3818138,164.6,164.55,51.6559]
[1730598760683,11.3818138,164.59,164.55,51.6559]
[1730598763287,11.3818138,164.57,164.55,51.6559]
[1730598766791,11.3818138,164.57,164.55,21.27]
[1730598766986,11.3818138,164.56,164.55,21.27]
[1730598767890,11.3818138,164.57,164.55,21.27]
[1730598769495,11.3818138,164.56,164.55,21.27]
[1730598769875,11.3818138,164.57,164.55,21.27]
[1730598774802,11.3818138,164.58,164.55,21.27]
[1730598778882,14.98638483,164.57,164.55,21.27]
[1730598779081,11.3818138,164.57,164.55,21.27]
[1730598780605,11.3818138,164.56,164.55,15.1929]
[1730598781099,14.98665569,164.56,164.55,15.1929]
[1730598781595,14.98665569,164.56,164.53,6.0779]
[1730598781801,11.3818138,164.54,164.53,6.0779]
[1730598783312,11.3818138,164.54,164.48,11.3818138]
[1730598783599,11.3818138,164.54,164.49,41.2777]
[1730598784407,11.3818138,164.54,164.49,83.0564138]
[1730598793124,11.3818138,164.55,164.49,83.0564138]
[1730598794819,6.0757,164.59,164.49,83.0564138]
[1730598795011,11.3818138,164.55,164.49,83.0564138]
[1730598798229,11.3818138,164.54,164.49,83.0564138]
[1730598800099,11.3818138,164.55,164.49,83.0564138]
[1730598803634,0.1,164.47,164.4,0.3045525]
[1730598803932,11.3818138,164.41,164.4,0.3045525]
[1730598805126,15.87837634,164.41,164.4,0.3045525]
[1730598805325,11.3818138,164.41,164.4,0.3045525]
[1730598805624,56.909069,164.41,164.4,0.3045525]
[1730598805817,11.3818138,164.41,164.4,0.3045525]
[1730598806416,56.909069,164.41,164.4,0.3045525]
[1730598811730,11.3818138,164.41,164.4,0.3045525]
[1730598816617,17.4641138,164.41,164.4,0.3045525]
[1730598816817,62.991369,164.41,164.4,0.3045525]
[1730598819225,17.4641138,164.41,164.4,0.3045525]
[1730598819736,62.991369,164.41,164.4,0.3045525]
[1730598823349,86.768253,164.41,164.4,0.3045525]
[1730598825351,86.868253,164.41,164.4,0.3045525]
[1730598825518,23.976884,164.4,164.32,0.3045525]
[1730598825724,11.3818138,164.33,164.32,21.6036525]
[1730598828253,6.0838,164.37,164.32,21.6036525]
[1730598828460,11.3818138,164.34,164.32,21.6036525]
[1730598829057,11.3818138,164.39,164.33,31.3818138]
[1730598829261,11.3818138,164.39,164.34,11.3818138]
[1730598829445,11.3818138,164.39,164.33,31.3818138]
[1730598829648,11.3818138,164.38,164.33,20.0]
[1730598830031,11.3818138,164.38,164.33,31.3818138]
[1730598830238,11.3818138,164.38,164.34,21.2972]
[1730598830453,11.3818138,164.39,164.34,21.2972]
[1730598831254,11.3818138,164.38,164.34,21.2972]
[1730598832750,11.3818138,164.39,164.34,21.2972]
[1730598836480,11.3818138,164.41,164.35,11.3818138]
[1730598836653,11.3818138,164.41,164.36,11.3818138]
[1730598837397,11.3818138,164.41,164.35,31.3818138]
[1730598837566,11.3818138,164.41,164.36,21.2947]
[1730598838581,11.3818138,164.39,164.36,21.2947]
[1730598844673,11.3818138,164.4,164.36,21.2947]
[1730598848477,3.59084011,164.39,164.36,21.2947]
[1730598848794,11.3818138,164.38,164.36,15.2105]
[1730598849189,3.5990519,164.37,164.36,15.2105]
[1730598851878,3.60049726,164.37,164.36,21.2947]
[1730598855794,11.3818138,164.39,164.36,21.2947]
[1730598856099,3.60074605,164.38,164.36,21.2947]
[1730598856289,3.60074605,164.37,164.36,21.2947]
[1730598857608,21.06655985,164.37,164.32,0.3045525]
[1730598857907,11.3818138,164.33,164.32,0.3045525]
[1730598858087,14.98255985,164.33,164.32,0.3045525]
[1730598858996,60.50981505,164.33,164.32,0.3045525]
[1730598859224,60.70981505,164.33,164.32,0.3045525]
[1730598859516,60.70981505,164.33,164.24,0.3045525]
[1730598859517,11.3818138,164.25,164.24,0.3045525]
[1730598861181,17.4700138,164.25,164.24,0.3045525]
[1730598861494,11.3818138,164.25,164.24,0.3045525]
[1730598863220,63.097269,164.25,164.24,0.3045525]
[1730598863514,67.67557364,164.25,164.24,0.3045525]
[1730598864330,0.1,164.21,164.16,0.3045525]
[1730598864604,11.3818138,164.17,164.16,0.3045525]
[1730598865004,11.3818138,164.18,164.16,0.3045525]
[1730598865201,11.3818138,164.19,164.16,0.3045525]
[1730598865411,11.3818138,164.2,164.16,0.3045525]
[1730598866913,11.3818138,164.18,164.16,0.3045525]
[1730598868690,11.3818138,164.19,164.16,0.3045525]
[1730598870112,6.0892,164.23,164.16,0.3045525]
[1730598870408,11.3818138,164.2,164.16,0.3045525]
[1730598871110,11.3818138,164.19,164.16,0.3045525]
[1730598871911,11.3818138,164.18,164.16,0.3045525]
[1730598872087,11.3818138,164.17,164.16,0.3045525]
[1730598873690,11.5818138,164.17,164.16,0.3045525]
[1730598873889,11.4818138,164.17,164.16,0.3045525]
[1730598874110,11.5818138,164.17,164.16,0.3045525]
[1730598874421,17.6730138,164.17,164.16,0.3045525]
[1730598875412,17.5730138,164.17,164.16,0.3045525]
[1730598875793,17.6730138,164.17,164.16,0.3045525]
[1730598876887,63.200269,164.17,164.16,0.3045525]
[1730598877513,11.3818138,164.1,164.07,0.3045525]
[1730598877813,11.3818138,164.11,164.07,0.3045525]
[1730598878325,11.3818138,164.1,164.07,0.3045525]
[1730598878623,11.3818138,164.11,164.07,0.3045525]
[1730598878811,11.3818138,164.1,164.07,0.3045525]
[1730598878999,11.3818138,164.11,164.07,0.3045525]
[1730598879194,11.3818138,164.12,164.07,0.3045525]
[1730598879819,11.3818138,164.11,164.07,0.3045525]
[1730598881116,11.3818138,164.09,164.07,0.3045525]
[1730598881291,11.3818138,164.1,164.07,0.3045525]
[1730598881691,11.3818138,164.11,164.07,0.3045525]
[1730598882512,45.6272552,164.16,164.07,11.6863663]
[1730598882513,11.3818138,164.13,164.07,11.6863663]
[1730598882702,11.3818138,164.13,164.08,11.3818138]
[1730598883292,11.3818138,164.13,164.08,23.776884]
[1730598883721,11.3818138,164.14,164.09,20.0]
[1730598884028,11.3818138,164.17,164.12,11.3818138]
[1730598884192,11.3818138,164.16,164.11,11.3818138]
[1730598884393,11.3818138,164.16,164.1,35.1586978]
[1730598884809,11.3818138,164.15,164.1,35.1586978]
[1730598885303,11.3818138,164.14,164.1,23.776884]
[1730598885507,11.3818138,164.14,164.09,20.0]
[1730598887213,11.3818138,164.14,164.09,31.3818138]
[1730598888196,11.3818138,164.15,164.09,31.3818138]
[1730598888819,11.3818138,164.14,164.09,31.3818138]
[1730598888995,11.3818138,164.15,164.09,31.3818138]
[1730598889199,11.3818138,164.14,164.09,31.3818138]
[1730598889913,11.3818138,164.15,164.09,31.3818138]
[1730598891324,0.1,164.19,164.1,35.1586978]
[1730598891325,11.3818138,164.16,164.1,35.1586978]
[1730598891497,11.3818138,164.16,164.11,11.3818138]
[1730598891702,11.3818138,164.16,164.1,35.1586978]
[1730598891898,11.3818138,164.15,164.1,35.1586978]
[1730598895313,11.3818138,164.15,164.1,23.776884]
[1730598895521,0.1,164.17,164.09,35.1481]
[1730598895715,11.3818138,164.14,164.09,35.1481]
[1730598896218,11.3818138,164.14,164.09,46.5299138]
[1730598896825,11.3818138,164.15,164.09,46.5299138]
[1730598897405,0.1,164.19,164.1,35.1586978]
[1730598897406,11.3818138,164.16,164.1,35.1586978]
[1730598898925,6.1908,164.19,164.1,35.1586978]
[1730598898926,11.3818138,164.15,164.1,23.776884]
[1730598900410,11.3818138,164.14,164.09,35.1481]
[1730598900673,11.3818138,164.1,164.07,0.3045525]
[1730598900836,61.3022552,164.16,164.07,0.3045525]
[1730598900837,11.3818138,164.09,164.07,0.3045525]
[1730598901008,61.1022552,164.16,164.07,0.3045525]
[1730598901009,11.3818138,164.08,164.07,0.3045525]
[1730598901343,11.3818138,164.09,164.07,0.3045525]
[1730598901507,11.3818138,164.08,164.07,0.3045525]
[1730598901835,72.137869,164.08,164.07,0.3045525]
[1730598902333,72.237869,164.08,164.07,0.3045525]
[1730598902536,26.7106138,164.08,164.07,0.3045525]
[1730598903223,78.332369,164.08,164.07,0.3045525]
[1730598904716,78.232369,164.08,164.07,0.3045525]
[1730598905027,78.432369,164.08,164.07,0.3045525]
[1730598905231,32.7051138,164.08,164.07,0.3045525]
[1730598905726,17.4763138,164.08,164.07,0.3045525]
[1730598905936,11.3818138,164.09,164.07,0.3045525]
[1730598906315,11.3818138,164.08,164.07,0.3045525]
[1730598907834,11.3818138,164.12,164.07,0.3045525]
[1730598908157,11.3818138,164.13,164.07,11.6863663]
[1730598908326,11.3818138,164.12,164.07,11.6863663]
[1730598908524,11.3818138,164.11,164.07,0.3045525]
[1730598909241,11.3818138,164.1,164.07,0.3045525]
[1730598909617,17.83219895,164.1,164.07,0.3045525]
[1730598909815,17.83219895,164.08,164.07,0.3045525]
[1730598911336,17.93219895,164.08,164.07,0.3045525]
[1730598911737,24.02669895,164.08,164.07,0.3045525]
[1730598911927,24.12669895,164.08,164.07,0.3045525]
[1730598912129,41.9588979,164.08,164.07,0.3045525]
[1730598913624,0.2,164.05,163.99,0.3045525]
[1730598913923,17.83219895,164.0,163.99,0.3045525]
[1730598915920,0.1,164.02,163.99,0.3045525]
[1730598915921,17.83219895,164.02,163.99,0.3045525]
[1730598916117,17.83219895,164.03,163.99,0.3045525]
[1730598916337,17.83219895,164.02,163.99,0.3045525]
[1730598917124,17.83219895,164.03,163.99,0.3045525]
[1730598917453,17.83219895,164.04,163.99,0.3045525]
[1730598922446,17.83219895,164.06,164.0,33.49679895]
[1730598923132,17.83219895,164.07,164.01,17.83219895]
[1730598926028,17.83219895,164.08,164.02,17.83219895]
[1730598926230,17.83219895,164.08,164.03,17.83219895]
[1730598926442,17.83219895,164.08,164.02,17.83219895]
[1730598926742,17.83219895,164.07,164.02,20.0]
[1730598926944,17.83219895,164.06,164.01,17.83219895]
[1730598928155,17.83219895,164.07,164.02,17.83219895]
[1730598928357,17.83219895,164.06,164.01,17.83219895]
[1730598929056,17.83219895,164.05,164.01,43.776884]
[1730598929559,17.83219895,164.03,163.99,0.3045525]
[1730598929736,11.42232748,164.03,163.99,0.3045525]
[1730598930676,11.42232748,164.04,163.99,11.72687998]
[1730598931040,11.42232748,164.03,163.99,0.3045525]
[1730598931444,0.1,164.06,163.99,0.3045525]
[1730598931445,11.42232748,164.04,163.99,0.3045525]
[1730598931937,11.42232748,164.04,163.99,11.72687998]
[1730598932559,11.42232748,164.05,163.99,11.72687998]
[1730598933038,11.42232748,164.04,163.99,11.72687998]
[1730598933240,11.42232748,164.04,163.99,0.3045525]
[1730598933462,11.42232748,164.03,163.99,0.3045525]
[1730598934140,11.42232748,164.0,163.99,0.3045525]
[1730598934341,11.42232748,164.01,163.99,0.3045525]
[1730598934746,11.42232748,164.0,163.99,0.3045525]
[1730598934953,11.42232748,164.01,163.99,0.3045525]
[1730598935158,11.42232748,164.0,163.99,0.3045525]
[1730598935465,11.42232748,164.01,163.99,0.3045525]
[1730598935681,17.85246955,164.01,163.99,0.3045525]
[1730598936176,17.85246955,164.03,163.99,0.3045525]
[1730598941768,17.85246955,164.04,163.99,0.3045525]
[1730598942559,17.85246955,164.04,163.99,18.15702205]
[1730598943068,17.85246955,164.05,163.99,18.15702205]
[1730598943276,17.85246955,164.06,164.0,17.85246955]
[1730598943453,17.85246955,164.05,163.99,18.15702205]
[1730598943656,17.85246955,164.03,163.99,24.0814365]
[1730598943960,17.85246955,164.03,163.99,0.3045525]
[1730598944175,0.2,164.07,163.99,0.3045525]
[1730598944176,17.85246955,164.04,163.99,0.3045525]
[1730598944577,17.85246955,164.03,163.99,0.3045525]
[1730598944881,17.85246955,164.04,163.99,0.3045525]
[1730598945057,17.85246955,164.04,163.99,18.15702205]
[1730598945378,17.85246955,164.04,163.99,0.3045525]
[1730598945558,17.85246955,164.03,163.99,0.3045525]
[1730598946952,17.85246955,164.04,163.99,0.3045525]
[1730598947158,17.85246955,164.05,163.99,18.15702205]
[1730598947462,17.85246955,164.04,163.99,0.3045525]
[1730598948655,17.85246955,164.03,163.99,0.3045525]
[1730598951158,23.94886955,164.03,163.99,0.3045525]
[1730598951375,17.85246955,164.01,163.99,0.3045525]
[1730598951554,17.85246955,164.02,163.99,0.3045525]
[1730598953679,17.85246955,164.01,163.99,0.3045525]
[1730598953865,17.85246955,164.0,163.99,0.3045525]
[1730598955764,11.42617834,164.0,163.99,0.3045525]
[1730598959773,11.42617834,164.01,163.99,0.3045525]
[1730598960083,11.42617834,164.02,163.99,0.3045525]
[1730598960760,11.52617834,164.0,163.99,0.3045525]
[1730598961686,16.02696065,164.0,163.99,0.3045525]
[1730598961890,22.12446065,164.0,163.99,0.3045525]
[1730598964094,17.62367834,164.0,163.99,0.3045525]
[1730598965184,21.230154,164.0,163.99,0.3045525]
[1730598965487,25.73260278,164.0,163.99,0.3045525]
[1730598966072,71.43731614,164.0,163.99,0.3045525]
[1730598966272,0.1,163.96,163.91,0.3045525]
[1730598966590,11.42617834,163.94,163.91,0.3045525]
[1730598967574,11.42617834,163.92,163.91,0.3045525]
[1730598967989,11.42617834,163.93,163.91,0.3045525]
[1730598968299,11.42617834,163.92,163.91,0.3045525]
[1730598968790,11.42617834,163.94,163.91,0.3045525]
[1730598971880,11.42617834,163.95,163.91,0.3045525]
[1730598972286,11.42617834,163.93,163.91,0.3045525]
[1730598972684,6.299,163.97,163.91,0.3045525]
[1730598972685,11.42617834,163.94,163.91,0.3045525]
[1730598973394,11.42617834,163.92,163.91,0.3045525]
[1730598973693,11.42617834,163.93,163.91,0.3045525]
[1730598973898,11.42617834,163.94,163.91,0.3045525]
[1730598974074,11.42617834,163.96,163.91,11.73073084]
[1730598975091,11.42617834,163.96,163.91,0.3045525]
[1730598975290,11.42617834,163.95,163.91,0.3045525]
[1730598975472,11.42617834,163.94,163.91,0.3045525]
[1730598975676,11.42617834,163.93,163.91,0.3045525]
[1730598976064,11.42617834,163.94,163.91,0.3045525]
[1730598976894,0.1,163.95,163.91,0.3045525]
[1730598976895,11.42617834,163.93,163.91,0.3045525]
[1730598979186,11.42617834,163.94,163.91,0.3045525]
[1730598981281,11.42617834,163.92,163.91,0.3045525]
[1730598982091,6.1997,163.95,163.91,0.3045525]
[1730598982092,11.42617834,163.93,163.91,0.3045525]
[1730598982683,11.42617834,163.94,163.91,0.3045525]
[1730598982877,11.42617834,163.96,163.91,11.73073084]
[1730598983102,11.42617834,163.97,163.92,11.42617834]
[1730598983680,11.42617834,163.97,163.91,11.73073084]
[1730598983878,11.42617834,163.98,163.92,11.42617834]
[1730598984098,11.42617834,163.99,163.93,11.42617834]
[1730598984407,11.42617834,163.98,163.93,11.42617834]
[1730598984693,11.42617834,163.98,163.92,11.42617834]
[1730598985101,11.42617834,163.97,163.92,11.42617834]
[1730598985279,11.42617834,163.97,163.91,11.73073084]
[1730598985479,11.42617834,163.98,163.92,11.42617834]
[1730598985792,11.42617834,163.98,163.93,11.42617834]